fUSD/lending_fUSD_20240625
["ID","MTS","AMOUNT","RATE_DAILY","PERIOD"]
[330345623,1719279047743,-151.0,0.00017805,2]
[330345624,1719279047753,-200.812748,0.00017805,2]
[330345625,1719279047763,-151.0,0.00017805,2]
[330345626,1719279047773,-151.0,0.00017805,2]
[330345627,1719279047783,-867.275663,0.00017805,2]
[330345628,1719279047792,-867.275663,0.00017805,2]
[330345629,1719279047801,-151.0,0.00017805,2]
[330345630,1719279047812,-151.0,0.00017805,2]
[330345631,1719279047822,-151.0,0.00017805,2]
[330345632,1719279047831,-25378.83295488,0.00017805,2]
[330345633,1719279047841,-426.963199,0.00017808,2]
[330345634,1719279047850,-1055.48,0.0001784,2]
[330345635,1719279047860,-1055.48,0.0001784,2]
[330345636,1719279047870,-159.889828,0.00017889,2]
[330345637,1719279047879,-151.0,0.00017889,2]
[330345638,1719279047889,-159.889828,0.00017889,2]
[330345639,1719279047899,-151.0,0.00017889,2]
[330345640,1719279047908,-338.817167,0.00017889,2]
[330345641,1719279047918,-338.817167,0.00017889,2]
[330345642,1719279047927,-6085.709416,0.00017889,2]
[330345643,1719279047937,-6085.709416,0.00017889,2]
[330345644,1719279047946,-1433.853309,0.00017889,2]
[330345645,1719279047957,-151.0,0.00017889,2]
[330345646,1719279047966,-191.845809,0.00017889,2]
[330345647,1719279047976,-1433.853309,0.00017889,2]
[330345648,1719279047987,-191.845809,0.00017889,2]
[330345649,1719279047996,-707.83824,0.00017889,2]
[330345650,1719279048006,-481.189943,0.00017889,2]
[330345651,1719279048016,-707.83824,0.00017889,2]
[330345652,1719279048025,-481.189943,0.00017889,2]
[330345653,1719279048036,-521.337018,0.00017889,2]
[330345654,1719279048045,-521.337018,0.00017889,2]
[330345655,1719279048054,-732.989042,0.00017889,2]
[330345656,1719279048064,-732.989042,0.00017889,2]
[330345657,1719279048074,-9417.62364813,0.00017889,2]
[330345658,1719279048083,-16424.63596702,0.00017889,2]
[330345659,1719279048093,-151.0,0.00017896,2]
[330345660,1719279048102,-167.0,0.00017921,2]
[330345661,1719279048112,-2321.42,0.00017985,2]
[330345662,1719279048123,-1161.28634758,0.00018,2]
[330345663,1719279048132,-337.47949968,0.00018034,2]
[330345664,1719279048141,-480.033224,0.00018082,2]
[330345665,1719279048151,-480.033224,0.00018082,2]
[330345666,1719279048161,-15907.81994644,0.00018088,2]
[330345667,1719279048170,-151.0,0.00018088,2]
[330345668,1719279048179,-222.669999,0.00018088,2]
[330345669,1719279048189,-215.702834,0.00018088,2]
[330345670,1719279048199,-222.669999,0.00018088,2]
[330345671,1719279048208,-215.702834,0.00018088,2]
[330345672,1719279048217,-151.0,0.00018088,2]
[330345673,1719279048227,-151.0,0.00018088,2]
[330345674,1719279048237,-208.866387,0.00018088,2]
[330345675,1719279048246,-151.0,0.00018088,2]
[330345676,1719279048255,-158.351792,0.00018088,2]
[330345677,1719279048264,-156.79225331,0.00018096,2]
[330345678,1719279048273,-863.32320531,0.00018163,2]
[330345679,1719279048283,-450.0,0.00018215,2]
[330345680,1719279048293,-1165.62622845,0.00018324,2]
[330345681,1719279048302,-339.0,0.00018367,2]
[330345682,1719279048312,-167.0,0.00018444,2]
[330345683,1719279048322,-25378.83295488,0.00018532,2]
[330345684,1719279048331,-151.0,0.00018532,2]
[330345685,1719279048341,-151.0,0.00018532,2]
[330345686,1719279048350,-150.0,0.00018586,2]
[330345687,1719279048360,-426.963199,0.0001863,2]
[330345688,1719279048369,-245.747691,0.00018702,2]
[330345689,1719279048379,-245.747691,0.00018702,2]
[330345690,1719279048388,-152.0,0.00018703,3]
[330345691,1719279048397,-150.0,0.00018715,2]
[330345692,1719279048407,-550.0,0.00018763,2]
[330345693,1719279048416,-150.0,0.00018802,2]
[330345694,1719279048426,-1944.02452,0.0001886,2]
[330345695,1719279048435,-150.0,0.00018888,2]
[330345696,1719279048444,-9417.62364813,0.0001889,2]
[330345697,1719279048454,-16424.63596702,0.0001889,2]
[330345698,1719279048463,-151.0,0.00018893,2]
[330345699,1719279048473,-733.473527,0.00018893,2]
[330345700,1719279048483,-733.473527,0.00018893,2]
[330345701,1719279048494,-1194.181865,0.00018893,2]
[330345702,1719279048506,-1194.181865,0.00018893,2]
[330345703,1719279048515,-151.0,0.00018893,2]
[330345704,1719279048525,-247.629763,0.00018895,2]
[330345705,1719279048535,-247.629763,0.00018895,2]
[330345706,1719279048544,-156.904594,0.00018895,2]
[330345707,1719279048553,-156.904594,0.00018895,2]
[330345708,1719279048754,-258.243269,0.00018895,2]
[330345709,1719279048764,-151.0,0.00018895,2]
[330345710,1719279048774,-630.589955,0.00018895,2]
[330345711,1719279048784,-630.589955,0.00018895,2]
[330345712,1719279048794,-525.363427,0.00018895,2]
[330345713,1719279048804,-525.363427,0.00018895,2]
[330345714,1719279048814,-698.453391,0.00018895,2]
[330345715,1719279048823,-180.69927,0.00018895,2]
[330345716,1719279048833,-698.453391,0.00018895,2]
[330345717,1719279048843,-180.69927,0.00018895,2]
[330345718,1719279048853,-191.471321,0.00018895,2]
[330345719,1719279048863,-191.471321,0.00018895,2]
[330345720,1719279048873,-159.380858,0.00018895,2]
[330345721,1719279048882,-159.380858,0.00018895,2]
[330345722,1719279048891,-165.67642337,0.00018895,2]
[330345723,1719279048901,-160.75,0.000189,2]
[330345724,1719279048911,-160.75,0.000189,2]
[330345725,1719279048920,-548.977824,0.00018904,2]
[330345726,1719279048931,-568.573523,0.00018904,2]
[330345727,1719279048941,-568.573523,0.00018904,2]
[330345728,1719279048950,-548.977824,0.00018904,2]
[330345729,1719279048960,-218.945849,0.00018904,2]
[330345730,1719279048969,-218.945849,0.00018904,2]
[330345731,1719279048978,-151.0,0.00018904,2]
[330345732,1719279048989,-151.0,0.00018904,2]
[330345733,1719279048999,-151.0,0.00018904,2]
[330345734,1719279049008,-151.0,0.00018904,2]
[330345735,1719279049017,-867.275663,0.00018904,2]
[330345736,1719279049026,-867.275663,0.00018904,2]
[330345737,1719279049035,-151.0,0.00018904,2]
[330345738,1719279049045,-151.0,0.00018904,2]
[330345739,1719279049054,-151.0,0.00018904,2]
[330345740,1719279049064,-600.0,0.0001892,2]
[330345741,1719279049074,-151.0,0.0001892,2]
[330345742,1719279049083,-150.0,0.00018975,2]
[330345743,1719279049093,-45185.44465195,0.00019,2]
[330345744,1719279049102,-155.08902224,0.00019,2]
[330345745,1719279049112,-205.166031,0.00019,2]
[330345746,1719279049121,-151.0,0.00019,2]
[330345747,1719279049131,-222.669999,0.00019,2]
[330345748,1719279049140,-215.702834,0.00019,2]
[330345749,1719279049149,-222.669999,0.00019,2]
[330345750,1719279049159,-215.702834,0.00019,2]
[330345751,1719279049168,-151.0,0.00019,2]
[330345752,1719279049178,-151.0,0.00019,2]
[330345753,1719279049187,-151.0,0.00019,2]
[330345754,1719279049196,-159.889828,0.00019,2]
[330345755,1719279049206,-151.0,0.00019,2]
[330345756,1719279049215,-159.889828,0.00019,2]
[330345757,1719279049225,-151.0,0.00019,2]
[330345758,1719279049234,-338.817167,0.00019,2]
[330345759,1719279049245,-338.817167,0.00019,2]
[330345760,1719279049255,-151.0,0.00019,2]
[330345761,1719279049265,-151.0,0.00019,2]
[330345762,1719279049275,-151.0,0.00019,2]
[330345763,1719279049286,-155.99731742,0.00019,2]
[330345764,1719279049296,-151.0,0.00019,2]
[330345765,1719279049305,-151.0,0.00019,2]
[330345766,1719279049315,-194.600891,0.00019,2]
[330345767,1719279049325,-194.600891,0.00019,2]
[330345768,1719279049334,-1000.0,0.00019,2]
[330345769,1719279049344,-6085.709416,0.00019,2]
[330345770,1719279049353,-225.0,0.00019,2]
[330345771,1719279049363,-6085.709416,0.00019,2]
[330345772,1719279049373,-1433.853309,0.00019,2]
[330345773,1719279049383,-286.566126,0.00019,2]
[330345774,1719279049392,-191.845809,0.00019,2]
[330345775,1719279049401,-1433.853309,0.00019,2]
[330345776,1719279049411,-191.845809,0.00019,2]
[330345777,1719279049420,-707.83824,0.00019,2]
[330345778,1719279049429,-481.189943,0.00019,2]
[330345779,1719279049439,-707.83824,0.00019,2]
[330345780,1719279049448,-481.189943,0.00019,2]
[330345781,1719279049457,-521.337018,0.00019,2]
[330345782,1719279049467,-521.337018,0.00019,2]
[330345783,1719279049477,-480.033224,0.00019,2]
[330345784,1719279049488,-480.033224,0.00019,2]
[330345785,1719279049498,-732.989042,0.00019,2]
[330345786,1719279049508,-732.989042,0.00019,2]
[330345787,1719279049518,-724.65003785,0.00019,2]
[330345788,1719279049528,-150.0,0.00019062,2]
[330345789,1719279049538,-337.47949968,0.00019078,2]
[330345790,1719279049548,-288.0,0.00019146,2]
[330345791,1719279049557,-150.0,0.00019148,2]
[330345792,1719279049567,-622.39796984,0.00019178,2]
[330345793,1719279049576,-475.09108422,0.00019178,2]
[330345794,1719279049585,-340.0,0.00019178,2]
[330345795,1719279049595,-500.0,0.00019178,2]
[330345796,1719279049604,-500.0,0.00019178,2]
[330345797,1719279049614,-500.0,0.00019178,2]
[330345798,1719279049624,-500.0,0.00019178,2]
[330345799,1719279049634,-500.0,0.00019178,2]
[330345800,1719279049643,-500.0,0.00019178,2]
[330345801,1719279049657,-500.0,0.00019178,2]
[330345802,1719279049667,-500.0,0.00019178,2]
[330345803,1719279049676,-500.0,0.00019178,2]
[330345804,1719279049686,-500.0,0.00019178,2]
[330345805,1719279049697,-350.0,0.00019178,2]
[330345806,1719279049706,-500.0,0.00019178,2]
[330345807,1719279049716,-500.0,0.00019178,2]
[330345808,1719279049726,-500.0,0.00019178,2]
[330345809,1719279049735,-500.0,0.00019178,2]
[330345810,1719279049745,-500.0,0.00019178,2]
[330345811,1719279049755,-400.0,0.00019178,2]
[330345812,1719279049764,-174.07671205,0.00019178,2]
[330345813,1719279049773,-500.0,0.00019178,2]
[330345814,1719279049783,-500.0,0.00019178,2]
[330345815,1719279049793,-500.0,0.00019178,2]
[330345816,1719279049802,-500.0,0.00019178,2]
[330345817,1719279049811,-500.0,0.00019178,2]
[330345818,1719279049820,-499.99999999,0.00019178,2]
[330345819,1719279049830,-500.0,0.00019178,2]
[330345820,1719279049839,-500.0,0.00019178,2]
[330345821,1719279049849,-500.0,0.00019178,2]
[330345822,1719279049859,-500.0,0.00019178,2]
[330345823,1719279049868,-500.0,0.00019178,2]
[330345824,1719279049878,-200.0,0.00019178,2]
[330345825,1719279049887,-500.0,0.00019178,2]
[330345826,1719279049896,-500.0,0.00019178,2]
[330345827,1719279049906,-500.0,0.00019178,2]
[330345828,1719279049915,-500.0,0.00019178,2]
[330345829,1719279049924,-500.0,0.00019178,2]
[330345830,1719279049934,-500.0,0.00019178,2]
[330345831,1719279049943,-300.0,0.00019178,2]
[330345832,1719279049953,-500.0,0.00019178,2]
[330345833,1719279049963,-500.0,0.00019178,2]
[330345834,1719279049972,-500.0,0.00019178,2]
[330345835,1719279049982,-500.0,0.00019178,2]
[330345836,1719279049993,-500.0,0.00019178,2]
[330345837,1719279050002,-500.0,0.00019178,2]
[330345838,1719279050013,-500.0,0.00019178,2]
[330345839,1719279050022,-500.0,0.00019178,2]
[330345840,1719279050032,-500.0,0.00019178,2]
[330345841,1719279050041,-240.0,0.00019178,2]
[330345842,1719279050051,-500.0,0.00019178,2]
[330345843,1719279050061,-500.0,0.00019178,2]
[330345844,1719279050071,-500.0,0.00019178,2]
[330345845,1719279050080,-500.0,0.00019178,2]
[330345846,1719279050090,-571.02075817,0.00019178,2]
[330345847,1719279050099,-500.0,0.00019178,2]
[330345848,1719279050108,-281.40981306,0.00019178,2]
[330345849,1719279050118,-500.0,0.00019178,2]
[330345850,1719279050127,-500.0,0.00019178,2]
[330345851,1719279050137,-500.0,0.00019178,2]
[330345852,1719279050146,-500.0,0.00019178,2]
[330345853,1719279050155,-500.0,0.00019178,2]
[330345854,1719279050165,-231.11703822,0.00019178,2]
[330345855,1719279050175,-430.0,0.00019178,2]
[330345856,1719279050184,-500.0,0.00019178,2]
[330345857,1719279050193,-500.0,0.00019178,2]
[330345858,1719279050202,-500.0,0.00019178,2]
[330345859,1719279050213,-519.32560563,0.00019178,2]
[330345860,1719279050222,-500.0,0.00019178,2]
[330345861,1719279050233,-500.0,0.00019178,2]
[330345862,1719279050246,-568.84311238,0.00019178,2]
[330345863,1719279050255,-637.1007786,0.00019178,2]
[330345864,1719279050264,-247.90189313,0.00019178,2]
[330345865,1719279050273,-500.0,0.00019178,2]
[330345866,1719279050283,-350.0,0.00019178,2]
[330345867,1719279050295,-191.8684192,0.00019178,2]
[330345868,1719279050304,-500.0,0.00019178,2]
[330345869,1719279050314,-500.0,0.00019178,2]
[330345870,1719279050323,-500.0,0.00019178,2]
[330345871,1719279050332,-500.0,0.00019178,2]
[330345872,1719279050341,-500.0,0.00019178,2]
[330345873,1719279050351,-500.0,0.00019178,2]
[330345874,1719279050360,-500.0,0.00019178,2]
[330345875,1719279050369,-500.0,0.00019178,2]
[330345876,1719279050378,-355.47459713,0.00019178,2]
[330345877,1719279050387,-500.0,0.00019178,2]
[330345878,1719279050396,-500.0,0.00019178,2]
[330345879,1719279050405,-500.0,0.00019178,2]
[330345880,1719279050416,-500.0,0.00019178,2]
[330345881,1719279050425,-500.0,0.00019178,2]
[330345882,1719279050434,-500.0,0.00019178,2]
[330345883,1719279050443,-500.0,0.00019178,2]
[330345884,1719279050452,-500.0,0.00019178,2]
[330345885,1719279050461,-500.0,0.00019178,2]
[330345886,1719279050470,-500.0,0.00019178,2]
[330345887,1719279050479,-549.38037094,0.00019178,2]
[330345888,1719279050490,-580.11341757,0.00019178,2]
[330345889,1719279050502,-500.0,0.00019178,2]
[330345890,1719279050512,-500.0,0.00019178,2]
[330345891,1719279050522,-500.0,0.00019178,2]
[330345892,1719279050531,-500.0,0.00019178,2]
[330345893,1719279050541,-518.51501511,0.00019178,2]
[330345894,1719279050549,-500.0,0.00019178,2]
[330345895,1719279050559,-500.0,0.00019178,2]
[330345896,1719279050568,-500.0,0.00019178,2]
[330345897,1719279050577,-500.0,0.00019178,2]
[330345898,1719279050587,-500.0,0.00019178,2]
[330345899,1719279050596,-500.0,0.00019178,2]
[330345900,1719279050605,-500.0,0.00019178,2]
[330345901,1719279050614,-500.0,0.00019178,2]
[330345902,1719279050623,-500.0,0.00019178,2]
[330345903,1719279050632,-500.0,0.00019178,2]
[330345904,1719279050642,-500.0,0.00019178,2]
[330345905,1719279050655,-500.0,0.00019178,2]
[330345906,1719279050665,-500.0,0.00019178,2]
[330345907,1719279050674,-500.0,0.00019178,2]
[330345908,1719279050683,-500.0,0.00019178,2]
[330345909,1719279050692,-500.0,0.00019178,2]
[330345910,1719279050703,-500.0,0.00019178,2]
[330345911,1719279050712,-500.0,0.00019178,2]
[330345912,1719279050721,-500.0,0.00019178,2]
[330345913,1719279050733,-500.0,0.00019178,2]
[330345914,1719279050743,-500.0,0.00019178,2]
[330345915,1719279050752,-500.0,0.00019178,2]
[330345916,1719279050762,-166.51515912,0.00019178,2]
[330345917,1719279050771,-500.0,0.00019178,2]
[330345918,1719279050780,-500.0,0.00019178,2]
[330345919,1719279050789,-500.0,0.00019178,2]
[330345920,1719279050798,-500.0,0.00019178,2]
[330345921,1719279050807,-500.0,0.00019178,2]
[330345922,1719279050816,-500.0,0.00019178,2]
[330345923,1719279050826,-500.0,0.00019178,2]
[330345924,1719279050835,-500.0,0.00019178,2]
[330345925,1719279050846,-525.0,0.00019178,2]
[330345926,1719279050855,-1166.56951043,0.00019178,2]
[330345927,1719279050864,-1166.56951043,0.00019178,2]
[330345928,1719279050873,-1166.56951043,0.00019178,2]
[330345929,1719279050883,-1166.56951043,0.00019178,2]
[330345930,1719279050892,-1166.56951043,0.00019178,2]
[330345931,1719279050903,-1166.56951043,0.00019178,2]
[330345932,1719279050913,-1166.56951043,0.00019178,2]
[330345933,1719279050923,-1166.56951043,0.00019178,2]
[330345934,1719279050933,-1166.56951043,0.00019178,2]
[330345935,1719279050942,-1166.56951043,0.00019178,2]
[330345936,1719279050951,-1166.56951043,0.00019178,2]
[330345937,1719279050961,-1166.56951043,0.00019178,2]
[330345938,1719279050970,-1166.56951043,0.00019178,2]
[330345939,1719279050979,-1166.56951043,0.00019178,2]
[330345940,1719279050990,-1166.56951043,0.00019178,2]
[330345941,1719279051000,-1166.56951043,0.00019178,2]
[330345942,1719279051009,-1166.56951043,0.00019178,2]
[330345943,1719279051018,-1166.56951043,0.00019178,2]
[330345944,1719279051028,-1166.56951043,0.00019178,2]
[330345945,1719279051037,-1166.56951043,0.00019178,2]
[330345946,1719279051046,-1166.56951043,0.00019178,2]
[330345947,1719279051055,-1166.56951043,0.00019178,2]
[330345948,1719279051065,-1166.56951043,0.00019178,2]
[330345949,1719279051074,-1166.56951043,0.00019178,2]
[330345950,1719279051083,-1166.56951043,0.00019178,2]
[330345951,1719279051093,-1166.56951043,0.00019178,2]
[330345952,1719279051102,-1166.56951043,0.00019178,2]
[330345953,1719279051111,-1166.56951043,0.00019178,2]
[330345954,1719279051120,-1166.56951043,0.00019178,2]
[330345955,1719279051130,-1166.56951043,0.00019178,2]
[330345956,1719279051139,-1166.56951043,0.00019178,2]
[330345957,1719279051148,-1166.56951043,0.00019178,2]
[330345958,1719279051157,-1166.56951043,0.00019178,2]
[330345959,1719279051166,-1166.56951043,0.00019178,2]
[330345960,1719279051174,-1166.56951043,0.00019178,2]
[330345961,1719279051183,-1166.56951043,0.00019178,2]
[330345962,1719279051192,-1166.56951043,0.00019178,2]
[330345963,1719279051201,-1166.56951043,0.00019178,2]
[330345964,1719279051210,-1166.56951043,0.00019178,2]
[330345965,1719279051219,-1166.56951043,0.00019178,2]
[330345966,1719279051228,-1166.56951043,0.00019178,2]
[330345967,1719279051237,-1166.56951043,0.00019178,2]
[330345968,1719279051249,-1166.56951043,0.00019178,2]
[330345969,1719279051258,-1166.56951043,0.00019178,2]
[330345970,1719279051267,-1166.56951043,0.00019178,2]
[330345971,1719279051277,-1166.56951043,0.00019178,2]
[330345972,1719279051286,-1166.56951043,0.00019178,2]
[330345973,1719279051295,-1166.56951043,0.00019178,2]
[330345974,1719279051304,-1166.56951043,0.00019178,2]
[330345975,1719279051314,-1166.56951043,0.00019178,2]
[330345976,1719279051323,-1166.56951043,0.00019178,2]
[330345977,1719279051332,-1166.56951043,0.00019178,2]
[330345978,1719279051341,-1166.56951043,0.00019178,2]
[330345979,1719279051351,-1166.56951043,0.00019178,2]
[330345980,1719279051360,-1166.56951043,0.00019178,2]
[330345981,1719279051370,-1166.56951043,0.00019178,2]
[330345982,1719279051380,-1166.56951043,0.00019178,2]
[330345983,1719279051389,-1166.56951043,0.00019178,2]
[330345984,1719279051398,-1154.90381533,0.00019178,2]
[330345985,1719279051407,-1154.90381533,0.00019178,2]
[330345986,1719279051416,-1154.90381533,0.00019178,2]
[330345987,1719279051426,-1154.90381533,0.00019178,2]
[330345988,1719279051435,-1154.90381533,0.00019178,2]
[330345989,1719279051445,-1154.90381533,0.00019178,2]
[330345990,1719279051454,-1154.90381533,0.00019178,2]
[330345991,1719279051464,-1154.90381533,0.00019178,2]
[330345992,1719279051473,-1154.90381533,0.00019178,2]
[330345993,1719279051482,-1154.90381533,0.00019178,2]
[330345994,1719279051491,-1154.90381533,0.00019178,2]
[330345995,1719279051500,-1154.90381533,0.00019178,2]
[330345996,1719279051510,-1154.90381533,0.00019178,2]
[330345997,1719279051707,-1154.90381533,0.00019178,2]
[330345998,1719279051716,-1154.90381533,0.00019178,2]
[330345999,1719279051726,-1154.90381533,0.00019178,2]
[330346000,1719279051736,-1154.90381533,0.00019178,2]
[330346001,1719279051748,-1154.90381533,0.00019178,2]
[330346002,1719279051757,-1154.90381533,0.00019178,2]
[330346003,1719279051766,-1154.90381533,0.00019178,2]
[330346004,1719279051776,-1154.90381533,0.00019178,2]
[330346005,1719279051786,-1154.90381533,0.00019178,2]
[330346006,1719279051796,-1154.90381533,0.00019178,2]
[330346007,1719279051805,-1154.90381533,0.00019178,2]
[330346008,1719279051814,-1154.90381533,0.00019178,2]
[330346009,1719279051823,-1154.90381533,0.00019178,2]
[330346010,1719279051833,-1154.90381533,0.00019178,2]
[330346011,1719279051842,-1154.90381533,0.00019178,2]
[330346012,1719279051851,-1154.90381529,0.00019178,2]
[330346013,1719279051860,-1154.90381529,0.00019178,2]
[330346014,1719279051870,-307.53795019,0.00019178,2]
[330346015,1719279051879,-151.0,0.00019178,2]
[330346016,1719279051888,-151.0,0.00019178,2]
[330346017,1719279051896,-151.0,0.00019178,2]
[330346018,1719279051905,-151.0,0.00019178,2]
[330346019,1719279051914,-247.629763,0.00019178,2]
[330346020,1719279051923,-247.629763,0.00019178,2]
[330346021,1719279051932,-247.629763,0.00019178,2]
[330346022,1719279051941,-247.629763,0.00019178,2]
[330346023,1719279051950,-156.904594,0.00019178,2]
[330346024,1719279051959,-156.904594,0.00019178,2]
[330346025,1719279051968,-156.904594,0.00019178,2]
[330346026,1719279051977,-156.904594,0.00019178,2]
[330346027,1719279051986,-151.0,0.00019178,2]
[330346028,1719279051996,-151.0,0.00019178,2]
[330346029,1719279052005,-151.0,0.00019178,2]
[330346030,1719279052015,-151.0,0.00019178,2]
[330346031,1719279052025,-630.589955,0.00019178,2]
[330346032,1719279052034,-630.589955,0.00019178,2]
[330346033,1719279052044,-630.589955,0.00019178,2]
[330346034,1719279052054,-630.589955,0.00019178,2]
[330346035,1719279052063,-222.669999,0.00019178,2]
[330346036,1719279052073,-222.669999,0.00019178,2]
[330346037,1719279052083,-215.702834,0.00019178,2]
[330346038,1719279052093,-215.702834,0.00019178,2]
[330346039,1719279052103,-222.669999,0.00019178,2]
[330346040,1719279052111,-222.669999,0.00019178,2]
[330346041,1719279052121,-215.702834,0.00019178,2]
[330346042,1719279052130,-215.702834,0.00019178,2]
[330346043,1719279052139,-151.0,0.00019178,2]
[330346044,1719279052148,-151.0,0.00019178,2]
[330346045,1719279052157,-151.0,0.00019178,2]
[330346046,1719279052166,-151.0,0.00019178,2]
[330346047,1719279052176,-525.363427,0.00019178,2]
[330346048,1719279052187,-525.363427,0.00019178,2]
[330346049,1719279052196,-525.363427,0.00019178,2]
[330346050,1719279052207,-525.363427,0.00019178,2]
[330346051,1719279052216,-698.453391,0.00019178,2]
[330346052,1719279052225,-698.453391,0.00019178,2]
[330346053,1719279052236,-180.69927,0.00019178,2]
[330346054,1719279052246,-180.69927,0.00019178,2]
[330346055,1719279052256,-698.453391,0.00019178,2]
[330346056,1719279052265,-698.453391,0.00019178,2]
[330346057,1719279052275,-180.69927,0.00019178,2]
[330346058,1719279052287,-180.69927,0.00019178,2]
[330346059,1719279052296,-151.0,0.00019178,2]
[330346060,1719279052307,-151.0,0.00019178,2]
[330346061,1719279052316,-191.471321,0.00019178,2]
[330346062,1719279052325,-191.471321,0.00019178,2]
[330346063,1719279052334,-191.471321,0.00019178,2]
[330346064,1719279052344,-191.471321,0.00019178,2]
[330346065,1719279052353,-159.380858,0.00019178,2]
[330346066,1719279052363,-159.380858,0.00019178,2]
[330346067,1719279052372,-159.380858,0.00019178,2]
[330346068,1719279052381,-159.380858,0.00019178,2]
[330346069,1719279052390,-245.747691,0.00019178,2]
[330346070,1719279052399,-245.747691,0.00019178,2]
[330346071,1719279052409,-245.747691,0.00019178,2]
[330346072,1719279052418,-245.747691,0.00019178,2]
[330346073,1719279052427,-245.747691,0.00019178,2]
[330346074,1719279052437,-245.747691,0.00019178,2]
[330346075,1719279052446,-269.3697,0.00019178,2]
[330346076,1719279052455,-733.473527,0.00019178,2]
[330346077,1719279052464,-733.473527,0.00019178,2]
[330346078,1719279052474,-733.473527,0.00019178,2]
[330346079,1719279052483,-733.473527,0.00019178,2]
[330346080,1719279052492,-733.473527,0.00019178,2]
[330346081,1719279052501,-733.473524,0.00019178,2]
[330346082,1719279052512,-159.889828,0.00019178,2]
[330346083,1719279052522,-151.0,0.00019178,2]
[330346084,1719279052531,-159.889828,0.00019178,2]
[330346085,1719279052540,-151.0,0.00019178,2]
[330346086,1719279052549,-159.889828,0.00019178,2]
[330346087,1719279052558,-159.889828,0.00019178,2]
[330346088,1719279052567,-151.0,0.00019178,2]
[330346089,1719279052577,-151.0,0.00019178,2]
[330346090,1719279052586,-338.817167,0.00019178,2]
[330346091,1719279052595,-338.817167,0.00019178,2]
[330346092,1719279052604,-338.817167,0.00019178,2]
[330346093,1719279052613,-338.817167,0.00019178,2]
[330346094,1719279052622,-216.0275,0.00019178,2]
[330346095,1719279052631,-1194.181865,0.00019178,2]
[330346096,1719279052641,-1194.181865,0.00019178,2]
[330346097,1719279052654,-1194.181865,0.00019178,2]
[330346098,1719279052663,-1194.181865,0.00019178,2]
[330346099,1719279052672,-1194.181865,0.00019178,2]
[330346100,1719279052682,-1194.181872,0.00019178,2]
[330346101,1719279052693,-151.0,0.00019178,2]
[330346102,1719279052702,-151.0,0.00019178,2]
[330346103,1719279052711,-151.0,0.00019178,2]
[330346104,1719279052722,-275.878507,0.00019178,2]
[330346105,1719279052732,-151.0,0.00019178,2]
[330346106,1719279052742,-151.0,0.00019178,2]
[330346107,1719279052751,-151.0,0.00019178,2]
[330346108,1719279052760,-151.0,0.00019178,2]
[330346109,1719279052769,-151.0,0.00019178,2]
[330346110,1719279052778,-151.0,0.00019178,2]
[330346111,1719279052788,-242.268332,0.00019178,2]
[330346112,1719279052797,-194.600891,0.00019178,2]
[330346113,1719279052806,-194.600891,0.00019178,2]
[330346114,1719279052815,-194.600891,0.00019178,2]
[330346115,1719279052824,-194.600891,0.00019178,2]
[330346116,1719279052833,-568.573523,0.00019178,2]
[330346117,1719279052843,-548.977824,0.00019178,2]
[330346118,1719279052853,-568.573523,0.00019178,2]
[330346119,1719279052864,-548.977824,0.00019178,2]
[330346120,1719279052874,-568.573523,0.00019178,2]
[330346121,1719279052884,-548.977824,0.00019178,2]
[330346122,1719279052894,-568.573523,0.00019178,2]